[Event "Titled Tuesday Blitz April 05 Late 2022"]
[White "Agasarov, Benik"]
[Black "Horcajuelo Rocamora, Martin"]
[WhiteFideId "13314823"]
[BlackFideId "24573027"]
[WhiteElo "2529"]
[BlackElo "2301"]
[Result "1-0"]
[Round "02"]
[TimeControl "180+1"]
[Date "2022.04.06"]
[WhiteClock "0:01:32"]
[BlackClock "0:01:16"]

1. e4 {[%clk 0:03:00]}  e5 {[%clk 0:02:57]} 2. Nf3 {[%clk 0:03:00]}  Nc6 {[%clk 0:02:54]} 3. Bb5 {[%clk 0:03:00]}  Nf6 {[%clk 0:02:53]} 4. d3 {[%clk 0:02:58]}  Be7 {[%clk 0:02:49]} 5. O-O {[%clk 0:02:56]}  d6 {[%clk 0:02:49]} 6. h3 {[%clk 0:02:54]}  a6 {[%clk 0:02:47]} 7. c3 {[%clk 0:02:54]}  axb5 {[%clk 0:02:47]} 8. Nbd2 {[%clk 0:02:51]}  O-O {[%clk 0:02:47]} 9. d4 {[%clk 0:02:50]}  Re8 {[%clk 0:02:39]} 10. Qb3 {[%clk 0:02:44]}  Bd7 {[%clk 0:02:33]} 11. Ng5 {[%clk 0:02:38]}  Rf8 {[%clk 0:02:30]} 12. f4 {[%clk 0:02:37]}  exd4 {[%clk 0:02:29]} 13. Ndf3 {[%clk 0:02:36]}  h6 {[%clk 0:02:26]} 14. e5 {[%clk 0:02:35]}  hxg5 {[%clk 0:02:26]} 15. exf6 {[%clk 0:02:35]}  Bxf6 {[%clk 0:02:26]} 16. fxg5 {[%clk 0:02:35]}  Be7 {[%clk 0:02:19]} 17. cxd4 {[%clk 0:02:35]}  Na5 {[%clk 0:02:15]} 18. Qc2 {[%clk 0:02:24]}  g6 {[%clk 0:02:13]} 19. Bf4 {[%clk 0:02:21]}  Bf5 {[%clk 0:02:08]} 20. Qf2 {[%clk 0:02:20]}  Kg7 {[%clk 0:02:05]} 21. Rae1 {[%clk 0:02:19]}  Qd7 {[%clk 0:02:03]} 22. b3 {[%clk 0:02:18]}  Nc6 {[%clk 0:01:56]} 23. d5 {[%clk 0:02:17]}  Na7 {[%clk 0:01:50]} 24. Qd4+ {[%clk 0:02:17]}  f6 {[%clk 0:01:50]} 25. g4 {[%clk 0:02:11]}  Bxg4 {[%clk 0:01:50]} 26. hxg4 {[%clk 0:02:12]}  Qxg4+ {[%clk 0:01:50]} 27. Kf2 {[%clk 0:02:12]}  Qd7 {[%clk 0:01:38]} 28. Re6 {[%clk 0:02:07]}  Nc6 {[%clk 0:01:34]} 29. Qe3 {[%clk 0:01:37]}  fxg5 {[%clk 0:01:28]} 30. dxc6 {[%clk 0:01:35]}  gxf4 {[%clk 0:01:21]} 31. Rxe7+ {[%clk 0:01:35]}  Rf7 {[%clk 0:01:22]} 32. Qd4+ {[%clk 0:01:33]}  Kg8 {[%clk 0:01:15]} 33. Rxd7 {[%clk 0:01:33]}  Re7 {[%clk 0:01:16]} 34. Rxe7 {[%clk 0:01:32]} 1-0


[Site "https://www.chess.com"]

[Event "Titled Tuesday Blitz April 05 Late 2022"]
[White "Araujo Filho, Luiz Antonio Coel"]
[Black "Mikhalsky, Vladimir"]
[WhiteFideId "2130661"]
[BlackFideId "14144352"]
[WhiteElo "2255"]
[BlackElo "2301"]
[Result "0-1"]
[Round "02"]
[TimeControl "180+1"]
[Date "2022.04.06"]
[WhiteClock "0:00:01"]
[BlackClock "0:00:10"]

1. d4 {[%clk 0:03:00]}  Nf6 {[%clk 0:02:58]} 2. Nf3 {[%clk 0:03:01]}  g6 {[%clk 0:02:57]} 3. c4 {[%clk 0:03:01]}  Bg7 {[%clk 0:02:57]} 4. Nc3 {[%clk 0:03:01]}  O-O {[%clk 0:02:57]} 5. e4 {[%clk 0:03:02]}  d6 {[%clk 0:02:57]} 6. Be2 {[%clk 0:03:03]}  e5 {[%clk 0:02:57]} 7. dxe5 {[%clk 0:03:04]}  dxe5 {[%clk 0:02:56]} 8. O-O {[%clk 0:03:04]}  c6 {[%clk 0:02:51]} 9. Qc2 {[%clk 0:03:04]}  Qc7 {[%clk 0:02:46]} 10. Rd1 {[%clk 0:03:04]}  a5 {[%clk 0:02:41]} 11. h3 {[%clk 0:02:58]}  Na6 {[%clk 0:02:39]} 12. Be3 {[%clk 0:02:55]}  Nh5 {[%clk 0:02:38]} 13. a3 {[%clk 0:02:52]}  Nf4 {[%clk 0:02:34]} 14. Bf1 {[%clk 0:02:52]}  Qe7 {[%clk 0:02:31]} 15. Rab1 {[%clk 0:02:50]}  Nc5 {[%clk 0:02:27]} 16. b4 {[%clk 0:02:49]}  axb4 {[%clk 0:02:27]} 17. axb4 {[%clk 0:02:49]}  Nce6 {[%clk 0:02:27]} 18. b5 {[%clk 0:02:38]}  c5 {[%clk 0:02:19]} 19. Nd5 {[%clk 0:02:21]}  Nxd5 {[%clk 0:02:18]} 20. exd5 {[%clk 0:01:55]}  Nd4 {[%clk 0:02:18]} 21. Nxd4 {[%clk 0:01:51]}  cxd4 {[%clk 0:02:13]} 22. Bd2 {[%clk 0:01:47]}  Bf5 {[%clk 0:02:12]} 23. Qb2 {[%clk 0:00:52]}  Bxb1 {[%clk 0:02:10]} 24. Bb4 {[%clk 0:00:52]}  Qg5 {[%clk 0:02:03]} 25. Bxf8 {[%clk 0:00:41]}  Bxf8 {[%clk 0:02:01]} 26. Rxb1 {[%clk 0:00:40]}  b6 {[%clk 0:01:57]} 27. Re1 {[%clk 0:00:38]}  Bc5 {[%clk 0:01:53]} 28. Bd3 {[%clk 0:00:30]}  Re8 {[%clk 0:01:43]} 29. g3 {[%clk 0:00:26]}  f5 {[%clk 0:01:42]} 30. h4 {[%clk 0:00:24]}  Qf6 {[%clk 0:01:37]} 31. f3 {[%clk 0:00:21]}  e4 {[%clk 0:01:31]} 32. fxe4 {[%clk 0:00:17]}  f4 {[%clk 0:01:31]} 33. Qf2 {[%clk 0:00:15]}  Bd6 {[%clk 0:01:26]} 34. Qf3 {[%clk 0:00:13]}  Ra8 {[%clk 0:01:23]} 35. e5 {[%clk 0:00:09]}  Bxe5 {[%clk 0:01:19]} 36. d6 {[%clk 0:00:09]}  Re8 {[%clk 0:01:00]} 37. Qd5+ {[%clk 0:00:09]}  Kg7 {[%clk 0:00:58]} 38. d7 {[%clk 0:00:08]}  Rd8 {[%clk 0:00:47]} 39. Qxe5 {[%clk 0:00:07]}  fxg3 {[%clk 0:00:40]} 40. Qxf6+ {[%clk 0:00:07]}  Kxf6 {[%clk 0:00:40]} 41. Kg2 {[%clk 0:00:05]}  Rxd7 {[%clk 0:00:39]} 42. Kxg3 {[%clk 0:00:06]}  Ra7 {[%clk 0:00:39]} 43. Rf1+ {[%clk 0:00:05]}  Ke5 {[%clk 0:00:39]} 44. Rf3 {[%clk 0:00:05]}  Ra3 {[%clk 0:00:36]} 45. h5 {[%clk 0:00:04]}  gxh5 {[%clk 0:00:35]} 46. Bxh7 {[%clk 0:00:05]}  h4+ {[%clk 0:00:34]} 47. Kg2 {[%clk 0:00:05]}  Ra2+ {[%clk 0:00:33]} 48. Kh3 {[%clk 0:00:05]}  Kd6 {[%clk 0:00:31]} 49. Bd3 {[%clk 0:00:04]}  Kc5 {[%clk 0:00:29]} 50. Kxh4 {[%clk 0:00:04]}  Kb4 {[%clk 0:00:27]} 51. Kg4 {[%clk 0:00:05]}  Rg2+ {[%clk 0:00:25]} 52. Kf4 {[%clk 0:00:05]}  Rg7 {[%clk 0:00:21]} 53. Ke4 {[%clk 0:00:05]}  Rd7 {[%clk 0:00:19]} 54. Bf1 {[%clk 0:00:03]}  Kc5 {[%clk 0:00:15]} 55. Rf5+ {[%clk 0:00:01]}  Kb4 {[%clk 0:00:15]} 56. Kd3 {[%clk 0:00:01]}  Re7 {[%clk 0:00:14]} 57. Rf3 {[%clk 0:00:01]}  Rd7 {[%clk 0:00:13]} 58. Rf4 {[%clk 0:00:01]}  Kc5 {[%clk 0:00:12]} 59. Be2 {[%clk 0:00:01]}  Re7 {[%clk 0:00:11]} 60. Re4 {[%clk 0:00:01]}  Rh7 {[%clk 0:00:10]} 0-1


[Site "https://www.chess.com"]

[Event "Titled Tuesday Blitz April 05 Late 2022"]
[White "Arias, Juan Cruz"]
[Black "Pakleza, Zbigniew"]
[WhiteFideId "118540"]
[BlackFideId "1119290"]
[WhiteElo "2091"]
[BlackElo "2467"]
[Result "0-1"]
[Round "02"]
[TimeControl "180+1"]
[Date "2022.04.05"]
[WhiteClock "0:00:12"]
[BlackClock "0:00:08"]

1. d4 {[%clk 0:03:00]}  d6 {[%clk 0:02:59]} 2. e4 {[%clk 0:03:00]}  Nf6 {[%clk 0:02:59]} 3. Nc3 {[%clk 0:03:00]}  c6 {[%clk 0:03:00]} 4. a4 {[%clk 0:02:59]}  Nbd7 {[%clk 0:03:00]} 5. Nge2 {[%clk 0:02:58]}  e5 {[%clk 0:03:00]} 6. g3 {[%clk 0:02:58]}  b6 {[%clk 0:02:59]} 7. Bg2 {[%clk 0:02:58]}  a6 {[%clk 0:03:00]} 8. O-O {[%clk 0:02:58]}  Bb7 {[%clk 0:03:00]} 9. h3 {[%clk 0:02:51]}  b5 {[%clk 0:03:00]} 10. g4 {[%clk 0:02:49]}  b4 {[%clk 0:02:59]} 11. Nb1 {[%clk 0:02:49]}  Qc7 {[%clk 0:02:43]} 12. Re1 {[%clk 0:02:49]}  g6 {[%clk 0:02:39]} 13. Nd2 {[%clk 0:02:45]}  Bg7 {[%clk 0:02:39]} 14. Nb3 {[%clk 0:02:45]}  O-O {[%clk 0:02:33]} 15. Ng3 {[%clk 0:02:39]}  h6 {[%clk 0:02:12]} 16. h4 {[%clk 0:02:35]}  Rfe8 {[%clk 0:02:06]} 17. g5 {[%clk 0:02:35]}  hxg5 {[%clk 0:02:05]} 18. hxg5 {[%clk 0:02:35]}  Nh7 {[%clk 0:02:04]} 19. a5 {[%clk 0:02:31]}  exd4 {[%clk 0:01:53]} 20. Nxd4 {[%clk 0:02:32]}  c5 {[%clk 0:01:53]} 21. Nf3 {[%clk 0:02:14]}  Rad8 {[%clk 0:01:44]} 22. Bf4 {[%clk 0:02:13]}  Bxb2 {[%clk 0:01:19]} 23. Bxd6 {[%clk 0:02:01]}  Qc6 {[%clk 0:01:17]} 24. Rb1 {[%clk 0:01:45]}  Bc3 {[%clk 0:01:14]} 25. Re3 {[%clk 0:01:33]}  Ne5 {[%clk 0:00:47]} 26. Rxc3 {[%clk 0:00:54]}  Rxd6 {[%clk 0:00:47]} 27. Rd3 {[%clk 0:00:54]}  Nxd3 {[%clk 0:00:41]} 28. cxd3 {[%clk 0:00:54]}  Qb5 {[%clk 0:00:37]} 29. Bf1 {[%clk 0:00:52]}  Qxa5 {[%clk 0:00:35]} 30. Qc1 {[%clk 0:00:51]}  Qb6 {[%clk 0:00:28]} 31. Nh2 {[%clk 0:00:51]}  Bc8 {[%clk 0:00:25]} 32. Be2 {[%clk 0:00:39]}  a5 {[%clk 0:00:24]} 33. Bg4 {[%clk 0:00:39]}  Rxd3 {[%clk 0:00:18]} 34. Bxc8 {[%clk 0:00:39]}  Rxc8 {[%clk 0:00:19]} 35. Ng4 {[%clk 0:00:39]}  Qd8 {[%clk 0:00:14]} 36. Nh6+ {[%clk 0:00:37]}  Kf8 {[%clk 0:00:14]} 37. Qc4 {[%clk 0:00:37]}  Nxg5 {[%clk 0:00:11]} 38. Kg2 {[%clk 0:00:32]}  Kg7 {[%clk 0:00:09]} 39. Rh1 {[%clk 0:00:32]}  Qd4 {[%clk 0:00:08]} 40. Qa6 {[%clk 0:00:30]}  Rxg3+ {[%clk 0:00:08]} 41. Kxg3 {[%clk 0:00:20]}  Nxe4+ {[%clk 0:00:08]} 42. Kf3 {[%clk 0:00:21]}  Qxf2+ {[%clk 0:00:08]} 43. Kxe4 {[%clk 0:00:21]}  Re8+ {[%clk 0:00:08]} 44. Kd5 {[%clk 0:00:21]}  Qf3+ {[%clk 0:00:08]} 45. Kc4 {[%clk 0:00:16]}  Qxh1 {[%clk 0:00:08]} 46. Ng4 {[%clk 0:00:12]}  Qf1+ {[%clk 0:00:08]} 0-1


[Site "https://www.chess.com"]

[Event "Titled Tuesday Blitz April 05 Late 2022"]
[White "Ashiev, Eduard"]
[Black "Vidonyak, Roman"]
[WhiteFideId "4130090"]
[BlackFideId "14100622"]
[WhiteElo "2004"]
[BlackElo "2502"]
[Result "1-0"]
[Round "02"]
[TimeControl "180+1"]
[Date "2022.04.06"]
[WhiteClock "0:00:02"]
[BlackClock "0:00:02"]

1. d4 {[%clk 0:03:00]}  f5 {[%clk 0:02:54]} 2. Bg5 {[%clk 0:02:59]}  h6 {[%clk 0:02:50]} 3. Bh4 {[%clk 0:02:59]}  g5 {[%clk 0:02:47]} 4. Bg3 {[%clk 0:02:58]}  Nf6 {[%clk 0:02:47]} 5. e3 {[%clk 0:02:58]}  d6 {[%clk 0:02:46]} 6. h4 {[%clk 0:02:58]}  Bg7 {[%clk 0:02:46]} 7. hxg5 {[%clk 0:02:58]}  hxg5 {[%clk 0:02:47]} 8. Rxh8+ {[%clk 0:02:58]}  Bxh8 {[%clk 0:02:48]} 9. Nc3 {[%clk 0:02:57]}  e6 {[%clk 0:02:39]} 10. Be2 {[%clk 0:02:56]}  Nbd7 {[%clk 0:02:37]} 11. Bh5+ {[%clk 0:02:56]}  Ke7 {[%clk 0:02:33]} 12. Be2 {[%clk 0:02:54]}  b6 {[%clk 0:02:25]} 13. Bf3 {[%clk 0:02:53]}  Rb8 {[%clk 0:02:21]} 14. Nge2 {[%clk 0:02:40]}  Bb7 {[%clk 0:02:21]} 15. Bxb7 {[%clk 0:02:39]}  Rxb7 {[%clk 0:02:22]} 16. Qd2 {[%clk 0:02:25]}  d5 {[%clk 0:02:12]} 17. O-O-O {[%clk 0:02:17]}  c6 {[%clk 0:02:11]} 18. Rh1 {[%clk 0:02:09]}  b5 {[%clk 0:02:03]} 19. Kb1 {[%clk 0:02:02]}  Nb6 {[%clk 0:01:57]} 20. b3 {[%clk 0:01:54]}  a5 {[%clk 0:01:54]} 21. Be5 {[%clk 0:01:53]}  a4 {[%clk 0:01:46]} 22. e4 {[%clk 0:01:52]}  f4 {[%clk 0:01:32]} 23. g3 {[%clk 0:01:37]}  axb3 {[%clk 0:01:29]} 24. cxb3 {[%clk 0:01:34]}  b4 {[%clk 0:01:29]} 25. Bxf6+ {[%clk 0:01:31]}  Kxf6 {[%clk 0:01:15]} 26. e5+ {[%clk 0:01:01]}  Kf7 {[%clk 0:01:14]} 27. gxf4 {[%clk 0:00:36]}  bxc3 {[%clk 0:01:11]} 28. Nxc3 {[%clk 0:00:28]}  Nc4 {[%clk 0:00:49]} 29. Qe2 {[%clk 0:00:25]}  Qg8 {[%clk 0:00:39]} 30. f5 {[%clk 0:00:24]}  exf5 {[%clk 0:00:32]} 31. Na4 {[%clk 0:00:23]}  Qg6 {[%clk 0:00:25]} 32. Ka1 {[%clk 0:00:22]}  Na3 {[%clk 0:00:15]} 33. Nc5 {[%clk 0:00:21]}  Rb8 {[%clk 0:00:15]} 34. Qa6 {[%clk 0:00:19]}  Nc2+ {[%clk 0:00:12]} 35. Kb2 {[%clk 0:00:17]}  Re8 {[%clk 0:00:08]} 36. Qb7+ {[%clk 0:00:13]}  Re7 {[%clk 0:00:08]} 37. Qc8 {[%clk 0:00:12]}  Nxd4 {[%clk 0:00:07]} 38. Rxh8 {[%clk 0:00:10]}  Qg7 {[%clk 0:00:04]} 39. e6+ {[%clk 0:00:07]}  Kf6 {[%clk 0:00:04]} 40. Rf8+ {[%clk 0:00:06]}  Ke5 {[%clk 0:00:04]} 41. Nd7+ {[%clk 0:00:06]}  Kf4 {[%clk 0:00:03]} 42. Qc7+ {[%clk 0:00:05]}  Kf3 {[%clk 0:00:03]} 43. Qg3+ {[%clk 0:00:05]}  Ke2 {[%clk 0:00:02]} 44. Qe3+ {[%clk 0:00:05]}  Kd1 {[%clk 0:00:03]} 45. Rb8 {[%clk 0:00:03]}  Nxb3+ {[%clk 0:00:03]} 46. Kxb3 {[%clk 0:00:02]}  d4 {[%clk 0:00:02]} 47. Qd3+ {[%clk 0:00:03]}  Kc1 {[%clk 0:00:02]} 48. Rc8 {[%clk 0:00:02]}  c5 {[%clk 0:00:02]} 49. Rxc5# {[%clk 0:00:02]} 1-0


[Site "https://www.chess.com"]

[Event "Titled Tuesday Blitz April 05 Late 2022"]
[White "Barbosa, Evandro Amorim"]
[Black "Jacobson, Brandon"]
[WhiteFideId "2115824"]
[BlackFideId "30901561"]
[WhiteElo "2454"]
[BlackElo "2362"]
[Result "1-0"]
[Round "02"]
[TimeControl "180+1"]
[Date "2022.04.05"]
[WhiteClock "0:00:28"]
[BlackClock "0:00:04"]

1. e4 {[%clk 0:03:00]}  c5 {[%clk 0:02:58]} 2. Nf3 {[%clk 0:03:00]}  d6 {[%clk 0:02:59]} 3. d4 {[%clk 0:03:00]}  cxd4 {[%clk 0:03:00]} 4. Nxd4 {[%clk 0:03:01]}  Nf6 {[%clk 0:03:01]} 5. Nc3 {[%clk 0:03:01]}  Nc6 {[%clk 0:03:02]} 6. Be2 {[%clk 0:03:01]}  e5 {[%clk 0:03:01]} 7. Nf3 {[%clk 0:03:01]}  Be7 {[%clk 0:03:02]} 8. Bg5 {[%clk 0:03:00]}  Be6 {[%clk 0:03:00]} 9. Bxf6 {[%clk 0:03:00]}  Bxf6 {[%clk 0:03:01]} 10. Nd5 {[%clk 0:03:01]}  O-O {[%clk 0:03:01]} 11. Nxf6+ {[%clk 0:03:00]}  Qxf6 {[%clk 0:02:48]} 12. Qxd6 {[%clk 0:03:00]}  Qg6 {[%clk 0:02:41]} 13. O-O {[%clk 0:02:46]}  Qxe4 {[%clk 0:02:41]} 14. Bd3 {[%clk 0:02:42]}  Qd5 {[%clk 0:02:39]} 15. Qxd5 {[%clk 0:02:34]}  Bxd5 {[%clk 0:02:39]} 16. Rfe1 {[%clk 0:02:26]}  Rfe8 {[%clk 0:02:24]} 17. Bb5 {[%clk 0:02:20]}  Bxf3 {[%clk 0:01:44]} 18. gxf3 {[%clk 0:02:18]}  Nd4 {[%clk 0:01:41]} 19. Bxe8 {[%clk 0:02:14]}  Nxf3+ {[%clk 0:01:41]} 20. Kf1 {[%clk 0:02:13]}  Nxe1 {[%clk 0:01:42]} 21. Bxf7+ {[%clk 0:02:06]}  Kxf7 {[%clk 0:01:43]} 22. Rxe1 {[%clk 0:02:05]}  Kf6 {[%clk 0:01:35]} 23. Rd1 {[%clk 0:02:04]}  Ke6 {[%clk 0:01:35]} 24. Ke2 {[%clk 0:02:04]}  Rf8 {[%clk 0:01:35]} 25. Rg1 {[%clk 0:02:03]}  g6 {[%clk 0:01:34]} 26. Rg3 {[%clk 0:02:02]}  Rf4 {[%clk 0:01:34]} 27. Rb3 {[%clk 0:01:58]}  b6 {[%clk 0:01:31]} 28. Ra3 {[%clk 0:01:56]}  Rf7 {[%clk 0:01:31]} 29. Ke3 {[%clk 0:01:54]}  Rc7 {[%clk 0:01:30]} 30. Kd2 {[%clk 0:01:48]}  Kf5 {[%clk 0:01:26]} 31. Rd3 {[%clk 0:01:34]}  Kf4 {[%clk 0:01:23]} 32. c3 {[%clk 0:01:31]}  e4 {[%clk 0:01:22]} 33. Rh3 {[%clk 0:01:26]}  h5 {[%clk 0:01:16]} 34. Ke2 {[%clk 0:01:26]}  Rd7 {[%clk 0:01:10]} 35. Rh4+ {[%clk 0:01:19]}  Kf5 {[%clk 0:01:10]} 36. Rh3 {[%clk 0:01:19]}  Kg4 {[%clk 0:01:10]} 37. Rg3+ {[%clk 0:01:19]}  Kf5 {[%clk 0:01:11]} 38. h4 {[%clk 0:01:19]}  Rd6 {[%clk 0:01:08]} 39. Rg5+ {[%clk 0:01:10]}  Kf4 {[%clk 0:01:09]} 40. a4 {[%clk 0:01:08]}  a6 {[%clk 0:00:59]} 41. Rg3 {[%clk 0:01:06]}  Kf5 {[%clk 0:00:50]} 42. Rg5+ {[%clk 0:01:05]}  Kf6 {[%clk 0:00:50]} 43. a5 {[%clk 0:01:00]}  b5 {[%clk 0:00:50]} 44. Rc5 {[%clk 0:00:56]}  Ke7 {[%clk 0:00:23]} 45. Ke3 {[%clk 0:00:52]}  Rf6 {[%clk 0:00:20]} 46. b4 {[%clk 0:00:46]}  Kd6 {[%clk 0:00:15]} 47. Rg5 {[%clk 0:00:45]}  Rf3+ {[%clk 0:00:02]} 48. Kxe4 {[%clk 0:00:45]}  Rxc3 {[%clk 0:00:03]} 49. Rxg6+ {[%clk 0:00:45]}  Ke7 {[%clk 0:00:03]} 50. Rxa6 {[%clk 0:00:45]}  Rc4+ {[%clk 0:00:04]} 51. Ke5 {[%clk 0:00:42]}  Rxb4 {[%clk 0:00:03]} 52. Ra7+ {[%clk 0:00:41]}  Kf8 {[%clk 0:00:02]} 53. f4 {[%clk 0:00:41]}  Ra4 {[%clk 0:00:03]} 54. a6 {[%clk 0:00:40]}  b4 {[%clk 0:00:03]} 55. Kf6 {[%clk 0:00:39]}  Ke8 {[%clk 0:00:03]} 56. f5 {[%clk 0:00:34]}  b3 {[%clk 0:00:04]} 57. Rb7 {[%clk 0:00:34]}  Rxa6+ {[%clk 0:00:04]} 58. Kg5 {[%clk 0:00:34]}  Ra5 {[%clk 0:00:03]} 59. Rxb3 {[%clk 0:00:31]}  Kf7 {[%clk 0:00:03]} 60. Rb7+ {[%clk 0:00:31]}  Kg8 {[%clk 0:00:03]} 61. Kg6 {[%clk 0:00:31]}  Kf8 {[%clk 0:00:04]} 62. f6 {[%clk 0:00:29]}  Ke8 {[%clk 0:00:04]} 63. Rb8+ {[%clk 0:00:28]}  Kd7 {[%clk 0:00:04]} 64. f7 {[%clk 0:00:28]} 1-0


[Site "https://www.chess.com"]

[Event "Titled Tuesday Blitz April 05 Late 2022"]
[White "Boskovic, Drasko"]
[Black "Goryachkina, Aleksandra"]
[WhiteFideId "927368"]
[BlackFideId "4147103"]
[WhiteElo "2403"]
[BlackElo "2650"]
[Result "0-1"]
[Round "02"]
[TimeControl "180+1"]
[Date "2022.04.06"]
[WhiteClock "0:01:59"]
[BlackClock "0:00:10"]

1. e4 {[%clk 0:02:59]}  e6 {[%clk 0:03:00]} 2. d4 {[%clk 0:02:59]}  d5 {[%clk 0:03:00]} 3. Nd2 {[%clk 0:03:00]}  Be7 {[%clk 0:02:58]} 4. Bd3 {[%clk 0:03:00]}  Nf6 {[%clk 0:02:57]} 5. Ngf3 {[%clk 0:02:59]}  c5 {[%clk 0:02:55]} 6. dxc5 {[%clk 0:03:00]}  dxe4 {[%clk 0:02:43]} 7. Nxe4 {[%clk 0:03:01]}  Nxe4 {[%clk 0:02:43]} 8. Bxe4 {[%clk 0:03:01]}  Qxd1+ {[%clk 0:02:42]} 9. Kxd1 {[%clk 0:03:02]}  Bxc5 {[%clk 0:02:42]} 10. Ke2 {[%clk 0:03:03]}  Ke7 {[%clk 0:02:31]} 11. Be3 {[%clk 0:03:04]}  Bxe3 {[%clk 0:02:27]} 12. Kxe3 {[%clk 0:03:05]}  Nd7 {[%clk 0:02:26]} 13. Rhd1 {[%clk 0:03:05]}  Nc5 {[%clk 0:02:22]} 14. Rd4 {[%clk 0:03:03]}  Nxe4 {[%clk 0:02:20]} 15. Kxe4 {[%clk 0:03:04]}  b6 {[%clk 0:02:18]} 16. Rad1 {[%clk 0:03:04]}  Bb7+ {[%clk 0:02:18]} 17. Ke3 {[%clk 0:03:04]}  Rhd8 {[%clk 0:02:11]} 18. g3 {[%clk 0:03:02]}  Rxd4 {[%clk 0:02:05]} 19. Rxd4 {[%clk 0:03:02]}  Rc8 {[%clk 0:02:04]} 20. c3 {[%clk 0:03:03]}  f6 {[%clk 0:02:04]} 21. h4 {[%clk 0:03:02]}  e5 {[%clk 0:02:02]} 22. Rd2 {[%clk 0:03:02]}  Ke6 {[%clk 0:02:02]} 23. Ne1 {[%clk 0:02:59]}  h6 {[%clk 0:01:38]} 24. Nd3 {[%clk 0:02:59]}  g5 {[%clk 0:01:36]} 25. hxg5 {[%clk 0:03:00]}  hxg5 {[%clk 0:01:36]} 26. Nb4 {[%clk 0:02:52]}  f5 {[%clk 0:01:34]} 27. f4 {[%clk 0:02:52]}  exf4+ {[%clk 0:01:34]} 28. gxf4 {[%clk 0:02:53]}  g4 {[%clk 0:01:34]} 29. Nc2 {[%clk 0:02:52]}  g3 {[%clk 0:01:28]} 30. Nd4+ {[%clk 0:02:53]}  Kf6 {[%clk 0:01:27]} 31. Nf3 {[%clk 0:02:52]}  Re8+ {[%clk 0:01:24]} 32. Ne5 {[%clk 0:02:53]}  g2 {[%clk 0:01:04]} 33. Kf2 {[%clk 0:02:47]}  Rg8 {[%clk 0:00:57]} 34. Rd1 {[%clk 0:02:48]}  Be4 {[%clk 0:00:54]} 35. Rg1 {[%clk 0:02:38]}  Rh8 {[%clk 0:00:53]} 36. Nf3 {[%clk 0:02:37]}  Rd8 {[%clk 0:00:31]} 37. Rxg2 {[%clk 0:02:37]}  Rd3 {[%clk 0:00:31]} 38. Rg3 {[%clk 0:02:28]}  Bxf3 {[%clk 0:00:31]} 39. Rxf3 {[%clk 0:02:29]}  Rd2+ {[%clk 0:00:31]} 40. Ke3 {[%clk 0:02:29]}  Rxb2 {[%clk 0:00:32]} 41. Kd4 {[%clk 0:02:16]}  Rxa2 {[%clk 0:00:31]} 42. Kd5 {[%clk 0:02:17]}  Rb2 {[%clk 0:00:27]} 43. c4 {[%clk 0:02:16]}  a5 {[%clk 0:00:26]} 44. Kc6 {[%clk 0:02:13]}  Rb4 {[%clk 0:00:24]} 45. Kd5 {[%clk 0:02:12]}  a4 {[%clk 0:00:23]} 46. Ra3 {[%clk 0:02:13]}  Kg6 {[%clk 0:00:18]} 47. Rh3 {[%clk 0:02:07]}  Rb3 {[%clk 0:00:17]} 48. Rh8 {[%clk 0:02:05]}  a3 {[%clk 0:00:17]} 49. Ra8 {[%clk 0:02:05]}  Kh5 {[%clk 0:00:17]} 50. Ke5 {[%clk 0:02:05]}  Kg4 {[%clk 0:00:11]} 51. Rg8+ {[%clk 0:02:05]}  Kf3 {[%clk 0:00:11]} 52. Kxf5 {[%clk 0:02:06]}  b5 {[%clk 0:00:10]} 53. c5 {[%clk 0:02:04]}  b4 {[%clk 0:00:10]} 54. Ke5 {[%clk 0:01:59]}  a2 {[%clk 0:00:10]} 0-1


[Site "https://www.chess.com"]

[Event "Titled Tuesday Blitz April 05 Late 2022"]
[White "Bowden, Karl"]
[Black "Saldano Dayer, Horacio"]
[WhiteFideId "400548"]
[BlackFideId "103411"]
[WhiteElo "2354"]
[BlackElo "2544"]
[Result "0-1"]
[Round "02"]
[TimeControl "180+1"]
[Date "2022.04.06"]
[WhiteClock "0:00:03"]
[BlackClock "0:00:21"]

1. e4 {[%clk 0:03:00]}  d6 {[%clk 0:03:00]} 2. d4 {[%clk 0:02:59]}  Nf6 {[%clk 0:02:59]} 3. Bd3 {[%clk 0:02:59]}  e5 {[%clk 0:02:58]} 4. c3 {[%clk 0:02:59]}  d5 {[%clk 0:02:58]} 5. dxe5 {[%clk 0:02:59]}  Nxe4 {[%clk 0:02:58]} 6. Nd2 {[%clk 0:02:59]}  Nc5 {[%clk 0:02:51]} 7. Bc2 {[%clk 0:02:59]}  Nc6 {[%clk 0:02:50]} 8. Ngf3 {[%clk 0:02:56]}  Bg4 {[%clk 0:02:49]} 9. h3 {[%clk 0:02:56]}  Bh5 {[%clk 0:02:48]} 10. g4 {[%clk 0:02:50]}  Bg6 {[%clk 0:02:47]} 11. Bxg6 {[%clk 0:02:49]}  hxg6 {[%clk 0:02:46]} 12. Nb3 {[%clk 0:02:48]}  Ne6 {[%clk 0:02:43]} 13. Be3 {[%clk 0:02:45]}  Qd7 {[%clk 0:02:32]} 14. Qe2 {[%clk 0:02:34]}  a5 {[%clk 0:02:19]} 15. a4 {[%clk 0:02:24]}  Ncd8 {[%clk 0:02:11]} 16. Kf1 {[%clk 0:02:11]}  b6 {[%clk 0:02:05]} 17. Kg2 {[%clk 0:02:10]}  Nb7 {[%clk 0:02:03]} 18. Rhd1 {[%clk 0:02:07]}  Nbc5 {[%clk 0:01:56]} 19. Qc2 {[%clk 0:01:23]}  O-O-O {[%clk 0:01:37]} 20. c4 {[%clk 0:01:05]}  Qc6 {[%clk 0:01:21]} 21. cxd5 {[%clk 0:00:44]}  Rxd5 {[%clk 0:01:20]} 22. Rxd5 {[%clk 0:00:32]}  Qxd5 {[%clk 0:01:21]} 23. Nxc5 {[%clk 0:00:32]}  Bxc5 {[%clk 0:01:16]} 24. Rd1 {[%clk 0:00:31]}  Qb7 {[%clk 0:01:04]} 25. Bxc5 {[%clk 0:00:20]}  Nxc5 {[%clk 0:01:01]} 26. Qc4 {[%clk 0:00:19]}  Rxh3 {[%clk 0:00:54]} 27. Qe2 {[%clk 0:00:16]}  Rh8 {[%clk 0:00:41]} 28. Re1 {[%clk 0:00:15]}  g5 {[%clk 0:00:39]} 29. Qc2 {[%clk 0:00:10]}  Ne6 {[%clk 0:00:38]} 30. Qf5 {[%clk 0:00:10]}  Kb8 {[%clk 0:00:33]} 31. Qe4 {[%clk 0:00:06]}  Nf4+ {[%clk 0:00:31]} 32. Kg1 {[%clk 0:00:05]}  Qxe4 {[%clk 0:00:20]} 33. Rxe4 {[%clk 0:00:05]}  Ne6 {[%clk 0:00:21]} 34. Nd4 {[%clk 0:00:05]}  Nxd4 {[%clk 0:00:19]} 35. Rxd4 {[%clk 0:00:05]}  Kc8 {[%clk 0:00:20]} 36. Re4 {[%clk 0:00:03]}  Re8 {[%clk 0:00:20]} 37. Kg2 {[%clk 0:00:03]}  Re6 {[%clk 0:00:20]} 38. Kf3 {[%clk 0:00:03]}  Kd7 {[%clk 0:00:20]} 39. Rd4+ {[%clk 0:00:03]}  Ke7 {[%clk 0:00:21]} 0-1


[Site "https://www.chess.com"]